Cogmind - Beta 15 @@@ ROGUE MODE // 2025.05.12 @ 01:34:13 Player: vainquit Result: Destroyed by Tesla Bomb Trap Performance ------------- Evolutions (2) 1000 Regions Visited (5) 1000 Robots Destroyed (75) 375 Value Destroyed (3251) 3251 Prototype IDs (3) 60 Alien Tech Used (0) 0 Bonus (471) 471 TOTAL SCORE: 6157 Bonus ------- High Alert Combat Kills 100 Follower Combat Kills 171 Entered Garrisons 200 Cogmind --------- Core Integrity 0/550 Matter 256/300 Energy 149/150 System Corruption 3% Temperature Cool (0) Movement Rolling (120) Ox2 Location -8/Garrison Parts ------- > --- POWER (1) -------- Light Angular Momentum Engine > --- PROPULSION (2) --- Advanced Treads (fused) Armored Wheel > --- UTILITY (6) ------ Large Storage Unit Signal Interpreter Target Analyzer Light Armor Plating > --- WEAPON (2) ------- Katana Katana > --- INVENTORY (15) --- Light Treads Light Treads Light Treads Light Treads Armored Wheel Compact Matter Pod (150) Relay Coupler [NC] (32) Relay Coupler [Cutter] (35) Relay Coupler [Grunt] (34) Relay Coupler [Sentry] (22) Relay Coupler [Specialist] (23) Relay Coupler [Hunter] (12) Beamcaster Remote Datajack Peak State ------------ > --- POWER ------------ Micro Nuclear Core > --- PROPULSION ------- Light Treads Light Treads > --- UTILITY ---------- Improved Heat Sink Improved Heat Sink Large Storage Unit Signal Interpreter Target Analyzer > --- WEAPON ----------- Precision Beam Rifle Precision Beam Rifle > --- INVENTORY -------- Light Treads Advanced Treads Advanced Treads Armored Wheel Armored Wheel Compact Matter Pod Relay Coupler [NC] Relay Coupler [Grunt] Relay Coupler [Specialist] Relay Coupler [Hunter] Heavy Assault Rifle Heavy Assault Rifle Grenade Launcher Datajack Katana [Rating: 28] Favorites ----------- Power Light Nuclear Core Engine Ion Engine Power Core Light Nuclear Core Propulsion Light Treads Treads Light Treads Leg Aluminum Leg Wheel Armored Wheel Utility Large Storage Unit Device Improved Heat Sink Storage Large Storage Unit Processor Signal Interpreter Protection Light Armor Plating Weapon Light Assault Rifle Energy Gun Precision Beam Rifle Ballistic Gun Light Assault Rifle Launcher Grenade Launcher Impact Weapon Hammer Slashing Weapon Katana Special Melee Weapon Datajack Build | -11 -10 -10 -9 -8 -8 ------- Run | Yrd Mat Min Mat Mat Gar Slots Evolved 4 | . . . 2 2 . Power . | . . . . . . Propulsion . | . . . . . . Utility 4 | . . . 2 2 . Weapon . | . . . . . . Parts Attached 66 | 7 4 9 15 21 10 Power 9 | 1 . 2 1 2 3 Engine 6 | 1 . 1 1 1 2 Core 3 | . . 1 . 1 1 Reactor . | . . . . . . Propulsion 20 | 2 2 1 5 7 3 Treads 12 | 2 . 1 2 4 3 Leg 3 | . . . 1 2 . Wheel 5 | . 2 . 2 1 . Hover . | . . . . . . Flight . | . . . . . . Utility 19 | 2 2 3 3 6 3 Device 5 | 1 . . . 3 1 Storage 3 | 1 2 . . . . Processor 4 | . . 1 1 1 1 Hackware . | . . . . . . Protection 7 | . . 2 2 2 1 Artifact . | . . . . . . Weapon 18 | 2 . 3 6 6 1 Energy Gun 2 | . . . . 2 . Energy Cannon . | . . . . . . Ballistic Gun 11 | 2 . 3 3 3 . Ballistic Cannon . | . . . . . . Launcher 1 | . . . 1 . . Special Weapon . | . . . . . . Impact Weapon 1 | . . . 1 . . Slashing Weapon 2 | . . . . 1 1 Piercing Weapon . | . . . . . . Special Melee Weapon 1 | . . . 1 . . Unidentified Prototypes 1 | . . . . 1 . Parts Lost 33 | . . 4 7 12 10 Power 6 | . . 1 1 2 2 Propulsion 10 | . . . 4 4 2 Utility 11 | . . 1 2 4 4 Weapon 6 | . . 2 . 2 2 Highest Loss Streak 6 | . . 2 6 6 6 To Critical Strikes . | . . . . . . Average Backups 12 | 3 5 13 12 11 14 Power . | . . . 1 . . Propulsion 4 | 2 4 4 3 3 5 Utility 4 | . . 5 4 4 6 Weapon 2 | . 1 2 3 2 1 Tool/Special . | . . . . . . Unused Backups 23 | . . 6 1 1 15 Power . | . . . . . . Propulsion 5 | . . . . 1 4 Utility 11 | . . 2 1 . 8 Weapon 6 | . . 4 . . 2 Tool/Special 1 | . . . . . 1 Average Slot Usage (%) 88 | . 100 99 88 70 82 Engine 5 | . 14 5 5 2 5 Core 4 | . . 8 5 4 1 Treads 19 | . 27 27 11 10 17 Wheel 2 | . . . 9 4 . Device 4 | . 14 . 4 2 8 Storage 11 | . 14 14 11 9 9 Processor 11 | . . 7 11 12 17 Protection 5 | . . 6 8 5 4 Energy Gun 1 | . . . . 1 5 Ballistic Gun 16 | . 28 27 19 14 . Slashing Weapon 3 | . . . . . 11 Peak Build Rating 28 | 7 8 11 15 26 28 Average Rating 14 | 5 7 9 12 16 25 On Entrance 11 | . 7 8 11 15 26 Naked Turns . | . . . . . . Heaviest Build 39 | 15 30 31 36 39 36 Greatest Support 44 | 40 40 40 40 44 44 Greatest Overweight (x) 3 | 1 . 1 3 3 2 Average Overweight (x) . | . . . 1 1 . Largest Inventory Capacity 25 | 8 25 15 15 15 15 Average Capacity 14 | 6 11 15 15 15 15 Most Carried 15 | 5 11 15 15 15 15 Average Carried 12 | 3 5 13 13 12 14 Final Capacity 15 | 8 15 15 15 15 15 Final Carried 15 | 5 11 15 14 15 14 Class Distribution -------------------- 69% | Mutant 30% | Scavenger-Mutant Dominant Class ---------------- Mutant | -10/Materials Mutant | -10/Mines Mutant | -9/Materials Mutant | -8/Materials Scavenger-Mutant | -8/Garrison Resources | -11 -10 -10 -9 -8 -8 ----------- Run | Yrd Mat Min Mat Mat Gar Matter Collected 2227 | 294 142 373 382 798 238 Remotely . | . . . . . . Salvage Created 2668 | 102 142 407 492 1001 524 Parts 133 | 3 6 24 31 49 20 Haulers Intercepted 2 | . 1 . . 1 . Recyclers Shooed 2 | . . . 1 1 . Parts Field Recycled . | . . . . . . Retrieved Matter . | . . . . . . Parts Self-Destructed . | . . . . . . Prevented . | . . . . . . Kills | -11 -10 -10 -9 -8 -8 ------- Run | Yrd Mat Min Mat Mat Gar Combat Hostiles Destroyed 64 | . 2 12 10 23 17 Melee 8 | . . . . 2 6 Guns 41 | . 2 12 8 17 2 AOE 12 | . . . 2 4 6 Classes Destroyed 13 | 2 2 1 3 4 1 Worker 2 | . . . . 2 . Builder 1 | . . . . 1 . Tunneler 1 | 1 . . . . . Hauler 2 | . 1 . . 1 . Recycler 1 | 1 . . . . . Operator 2 | . . . 2 . . Watcher 2 | . . . 1 1 . Swarmer 17 | . . 6 . 5 6 Grunt 31 | . 2 6 8 11 4 Duelist 2 | . . . . 1 1 Sentry 8 | . . . 2 5 1 Hunter 2 | . . . . 1 1 Programmer 4 | . . . . . 4 Best Kill Streak 7 | 1 1 3 3 6 7 Combat Bots Only 7 | . 1 3 3 4 7 Max Kills in Single Turn 3 | 1 1 1 1 2 3 Gunslinging . | . . . . . . Exploded 3 | . . . 1 2 3 Melee 1 | . . . . 1 1 Uniques/NPCs Destroyed . | . . . . . . Combat | -11 -10 -10 -9 -8 -8 -------- Run | Yrd Mat Min Mat Mat Gar Hostile Shots Fired 497 | . 21 79 89 199 109 Missed 112 | . 2 16 23 47 24 Hits 385 | . 19 63 66 152 85 Projectile 385 | . 19 63 66 152 85 Critical Strikes 15 | . . . 4 8 3 Damage Taken 5358 | . 279 718 941 2039 1381 Core 840 | . 28 138 122 243 309 Absorbed by Shields 188 | . . . . 188 . Core Remaining (%) 67 | 100 . 33 69 . . Volleys Fired 280 | 4 21 57 75 94 29 Largest 2 | 2 2 2 2 2 2 Hottest 122 | 40 40 40 43 122 122 Shots Fired 500 | 8 42 105 123 172 50 Gun 481 | 8 42 105 120 162 44 Cannon . | . . . . . . Launcher 19 | . . . 3 10 6 Special . | . . . . . . Kinetic 429 | 8 42 105 120 154 . Thermal 52 | . . . . 8 44 Explosive 19 | . . . 3 10 6 Electromagnetic . | . . . . . . Robot Hit Streak 18 | 5 8 14 12 11 18 Robot Miss Streak 6 | 1 2 6 2 4 1 Penetration Max . | . . . . . . Secondary Targets 9 | . 1 3 . 3 2 Max Gunslinging Chain 1 | . 1 1 . 1 1 Shots Hit Robots 395 | 6 30 73 93 127 66 Core Hits 150 | 3 7 28 29 56 27 Critical Kills . | . . . . . . Critical Parts Destroyed . | . . . . . . Critical Strikes 12 | . . . . . 12 Burn 8 | . . . . . 8 Sever 4 | . . . . . 4 Melee Attacks 70 | . . . 5 9 56 Impact 3 | . . . 3 . . Slashing 65 | . . . . 9 56 Piercing . | . . . . . . Sneak Attacks 1 | . . . 1 . . Combat Hostiles . | . . . . . . Follow-up Attacks 5 | . . . . . 5 Damage Inflicted 6563 | 70 397 712 1015 2531 1838 Guns 4372 | 70 397 712 888 1578 727 Cannons . | . . . . . . Explosions 1243 | . . . 77 739 427 Melee 948 | . . . 50 214 684 Ramming . | . . . . . . Kinetic 3527 | 70 397 712 888 1460 . Thermal 845 | . . . . 118 727 Explosive 1243 | . . . 77 739 427 Electromagnetic . | . . . . . . Impact 50 | . . . 50 . . Slashing 898 | . . . . 214 684 Piercing . | . . . . . . Highest Corruption 3 | . . . . 1 3 Average Corruption 2 | . . . . 1 2 Corruption Purged . | . . . . . . Corruption Blocked . | . . . . . . Effects 22 | . . . . 4 18 Message Errors 2 | . . . . . 2 Matter Fused 6 | . . . . . 6 Heat Flow Errors 3 | . . . . 1 2 Energy Discharges 1 | . . . . . 1 Parts Rejected 1 | . . . . 1 . Parts Fused 2 | . . . . . 2 Data Loss (minor) 3 | . . . . 1 2 Data Loss (major) 2 | . . . . . 2 Misfires 2 | . . . . 1 1 Overload Shots . | . . . . . . Overflow Damage 92 | . . . 10 19 63 Projectiles . | . . . . . . Explosions 35 | . . . . 19 16 Melee 57 | . . . 10 . 47 Knockbacks 1 | . . . 1 . . Impact 1 | . . . 1 . . Kinetic . | . . . . . . Secondary . | . . . . . . Self-Inflicted Damage 134 | . . . . 25 109 Shots 5 | . . . . 1 4 Rammed . | . . . . . . Targets Rammed . | . . . . . . Kicked . | . . . . . . Crushed . | . . . . . . Highest Temperature 234 | . 2 62 109 234 158 Average Temperature 22 | . 2 15 27 19 64 Received Heat Transfer 2295 | . 165 291 510 969 360 Siege Activations . | . . . . . . Martial Activations . | . . . . . . Shielding Activations . | . . . . . . Robots Disrupted . | . . . . . . Combat Hostiles . | . . . . . . Robots Corrupted 1 | . . . 1 . . Combat Hostiles . | . . . . . . Parts Fried 1 | . . . 1 . . Impact Corruptions 2 | . . . 2 . . Robots Melted 3 | . . . . . 3 Combat Hostiles 3 | . . . . . 3 Parts Melted 13 | . . . . . 13 Heat Transferred 2041 | . . . . 259 1782 Parts Sabotaged . | . . . . . . Parts Stolen . | . . . . . . Parts Stripped . | . . . . . . Power Chain Reactions . | . . . . . . Alert | -11 -10 -10 -9 -8 -8 ------- Run | Yrd Mat Min Mat Mat Gar Maximum Alert Level 3 | . . . . 1 3 Low Security (%) 68 | 100 100 100 100 72 . Level 1 12 | . . . . 27 31 Level 2 8 | . . . . . 32 Level 3 9 | . . . . . 36 Level 4 . | . . . . . . Level 5 . | . . . . . . High Security . | . . . . . . Max Security . | . . . . . . Peak Influence 963 | 5 30 92 149 359 963 Initial 233 | . . . . 46 233 Average 187 | . 7 17 57 110 580 Influence Increases 2370 | 10 64 330 361 735 870 Destroy 0b10 Robot/C 1380 | . 40 240 200 460 440 Destroy 0b10 Robot/NC 60 | 10 5 5 15 25 . Destroy Leader 288 | . 12 50 62 134 30 Allied During Kill 13 | . . . . . 13 Successful Hack 72 | . 6 5 36 11 14 Select Force Hacks 30 | . . . . 30 . Disable Machine 60 | . . . 30 15 15 Anti-Garrison Action 200 | . . . . . 200 Destroy Structure 162 | . 1 . 18 45 98 Lose Combat Pursuer 105 | . . 30 . 15 60 Influence Decreases 1407 | 10 64 330 250 487 266 Entered New Map 191 | . . . . 65 126 Time Decay 882 | 10 64 290 202 316 . Lost Part 281 | . . 40 35 106 100 Lost Ally 40 | . . . . . 40 Purge Threat 13 | . . . 13 . . Squads Dispatched 11 | . 1 . 2 8 . Investigation 2 | . . . . 2 . Extermination . | . . . . . . Reinforcement 6 | . 1 . 2 3 . Assault . | . . . . . . Garrison 3 | . . . . 3 . Intercept . | . . . . . . Searches Triggered . | . . . . . . Construction Impeded 1 | . . . . 1 . Haulers Reinforced . | . . . . . . Active Scanning Responses . | . . . . . . Cargo Convoy Interrupts . | . . . . . . Stealth | -11 -10 -10 -9 -8 -8 --------- Run | Yrd Mat Min Mat Mat Gar Distress Signals 4 | . . . 2 2 . Communications Jammed . | . . . . . . Distress Signals . | . . . . . . Times Spotted 99 | . 3 14 20 38 24 Peak Tracking Total 7 | . 2 3 4 7 6 Tactical Retreats 6 | . . 1 . 1 4 Traps | -11 -10 -10 -9 -8 -8 ------- Run | Yrd Mat Min Mat Mat Gar Traps Triggered 2 | . . . . . 2 Indirectly . | . . . . . . Trap Hack Attempts . | . . . . . . Triggered . | . . . . . . Disarmed . | . . . . . . Reprogrammed . | . . . . . . Reused . | . . . . . . Traps Extracted . | . . . . . . Installed . | . . . . . . Triggered . | . . . . . . Machines | -11 -10 -10 -9 -8 -8 ---------- Run | Yrd Mat Min Mat Mat Gar Machines Disabled 8 | . . . 2 1 5 Max in Single Turn 1 | . . . 1 1 1 Garrison Relay 4 | . . . . . 4 Machines Repaired . | . . . . . . Machines Dismantled . | . . . . . . Machines Sabotaged . | . . . . . . Overloaded Fab Kills . | . . . . . . Hacking | -11 -10 -10 -9 -8 -8 --------- Run | Yrd Mat Min Mat Mat Gar Machines Accessed 14 | . 1 2 5 2 4 Terminals 12 | . 1 1 5 1 4 Fabricators . | . . . . . . Repair Stations . | . . . . . . Recycling Units . | . . . . . . Scanalyzers . | . . . . . . Garrison Access 1 | . . . . 1 . Total Hacks 45 | . 4 5 22 9 5 Successful 26 | . 2 4 13 4 3 Failed 19 | . 2 1 9 5 2 Catastrophic . | . . . . . . Database Lockouts . | . . . . . . Manual 25 | . 2 5 13 5 . Terminals 41 | . 4 4 22 6 5 Fabricators . | . . . . . . Repair Stations . | . . . . . . Recycling Units . | . . . . . . Scanalyzers . | . . . . . . Garrison Access 3 | . . . . 3 . Terminal Hacks 20 | . 2 4 9 2 3 Robot Analysis 1 | . . 1 . . . Prototype ID Bank 1 | . . . 1 . . Open Door 2 | . . 1 . . 1 Level Access Points 1 | . . . 1 . . Branch Access Points 1 | . . . 1 . . Emergency Access Points 1 | . . . . . 1 Terminal Index 3 | . . 1 1 1 . Unreport Threat 1 | . . . 1 . . Locate Traps 2 | . 1 . 1 . . Recall Reinforcements 1 | . . . 1 . . Hauler Manifests 2 | . 1 . 1 . . Zone Layout 3 | . . 1 1 1 . Patrol Navigation 1 | . . . . . 1 Fabricator Hacks . | . . . . . . Repair Station Hacks . | . . . . . . Recycling Unit Hacks . | . . . . . . Scanalyzer . | . . . . . . Garrison Access Hacks 1 | . . . . 1 . Unlock Access 1 | . . . . 1 . Unauthorized Hacks 5 | . . . 4 1 . Terminals 4 | . . . 4 . . Track 1 | . . . 1 . . Assimilate 1 | . . . 1 . . Botnet 2 | . . . 2 . . Fabricators . | . . . . . . Repair Stations . | . . . . . . Recycling Units . | . . . . . . Scanalyzers . | . . . . . . Garrison Access 1 | . . . . 1 . Eject 1 | . . . . 1 . Data Cores Recovered . | . . . . . . Used . | . . . . . . Hacking Detections 7 | . . 1 3 2 1 Full Trace Events 1 | . . . . 1 . Feedback Events 1 | . . . . 1 . Corruption 1 | . . . . 1 . Feedback Blocked . | . . . . . . Robot Schematics Acquired . | . . . . . . Robots Built . | . . . . . . Authchips . | . . . . . . Time . | . . . . . . Total Robot Build Rating . | . . . . . . Part Schematics Acquired . | . . . . . . Parts Built . | . . . . . . Authchips . | . . . . . . Time . | . . . . . . Total Part Build Rating . | . . . . . . Parts Repaired . | . . . . . . Time . | . . . . . . Parts Recycled . | . . . . . . Recycled Matter . | . . . . . . Retrieved Matter . | . . . . . . Retrieved Components . | . . . . . . Parts Scanalyzed . | . . . . . . Part Schematics Acquired . | . . . . . . Parts Damaged . | . . . . . . Bothacking | -11 -10 -10 -9 -8 -8 ------------ Run | Yrd Mat Min Mat Mat Gar Used RIF Installer . | . . . . . . Robots Hacked . | . . . . . . Non-combat . | . . . . . . Combat . | . . . . . . Robot Hacks Applied . | . . . . . . Relay Couplers Released 24 | . . . . 3 21 Ejected 3 | . . . . 3 . Machine Destruction 18 | . . . . . 18 Programmers 3 | . . . . . 3 Fabnet Peak Effective % . | . . . . . . Robots Rewired . | . . . . . . Allies Hacked . | . . . . . . Hacks Repelled . | . . . . . . Allies | -11 -10 -10 -9 -8 -8 -------- Run | Yrd Mat Min Mat Mat Gar Total Allies 2 | . . . . . 2 Largest Group 2 | . . . . . 2 Highest-Rated Group 62 | . . . . . 62 Highest-Rated Ally 31 | . . . . . 31 Total Orders . | . . . . . . Ally Attacks 25 | . . . . . 25 Total Damage 337 | . . . . . 337 Kills 5 | . . . . . 5 Allies Corrupted . | . . . . . . Allies Melted . | . . . . . . Intel | -11 -10 -10 -9 -8 -8 ------- Run | Yrd Mat Min Mat Mat Gar Active Infowar (turns) 1059 | 98 237 87 256 248 133 Seismic 797 | 98 237 87 256 . 119 T.N.C. 360 | . . . . 248 112 Robot Analysis Total 1 | . . 1 . . . Derelict Logs Recovered 1 | . . 1 . . . Drone Launches . | . . . . . . Drone Recoveries . | . . . . . . Exploration | -11 -10 -10 -9 -8 -8 ------------- Run | Yrd Mat Min Mat Mat Gar Turns Passed 4350 | 192 237 1390 655 722 1154 Spaces Moved 2140 | 117 97 744 315 261 606 Core 24 | 24 . . . . . Treads 1626 | 93 97 744 47 80 565 Legs . | . . . . . . Wheels 490 | . . . 268 181 41 Hover . | . . . . . . Flight . | . . . . . . Fastest Speed 50 | 50 160 160 90 105 120 Average Speed 147 | 141 160 160 125 134 147 Slowest Speed 240 | 160 160 240 240 240 160 Overloaded Moves . | . . . . . . Propulsion Burnouts . | . . . . . . Robots Hopped . | . . . . . . Potential Cave-ins . | . . . . . . Cave-ins Triggered . | . . . . . . Exploration Rate (%) 44 | 5 16 98 39 23 84 Regions Visited 5 Branch Regions 1 Pre-discovered Areas 1 | . . 1 . . . Known Exits Taken 3 | . . 1 1 1 . Unknown Exits Taken 2 | 1 1 . . . . Scrap Searched 1 | . . 1 . . . Spaces Dug 2 | . . . . . 2 Terrain Destroyed 71 | . . . 15 40 16 Melee 2 | . . . . . 2 Projectile . | . . . . . . AOE 69 | . . . 15 40 14 Terrain Rammed . | . . . . . . Walls Destroyed . | . . . . . . Machines Disabled . | . . . . . . Actions | -11 -10 -10 -9 -8 -8 --------- Run | Yrd Mat Min Mat Mat Gar Total 2797 | 132 134 857 465 467 742 Wait 129 | . 2 29 33 51 14 Move 2135 | 116 96 743 314 260 606 Hop . | . . . . . . Pick Up 50 | 5 6 10 7 10 12 Fast Attach 34 | 7 . 3 4 13 7 Attach 21 | . . 2 6 8 5 Detach 10 | . . 1 1 6 2 Swap 41 | . 7 4 13 8 9 Drop 33 | . 2 8 7 8 8 Fire 280 | 4 21 57 75 94 29 Melee 64 | . . . 5 9 50 Ram . | . . . . . . Kick . | . . . . . . Crush . | . . . . . . Escape Stasis . | . . . . . . Rewire . | . . . . . . Trap . | . . . . . . Miscellaneous . | . . . . . . Route ------- -11/Scrapyard -10/Materials -10/Mines (discovered 2 exits: *Mat x2) -9/Materials (discovered 5 exits: *Mat x3 / Min x2) -8/Materials -8/Garrison (discovered 3 exits: *Mat x3) History --------- Turn | Location | Event 5 | -11/Scrapyard | Discovered new exit (range 16) 193 | -11/Scrapyard | Entered Materials 219 | -10/Materials | Discovered new exit (range 16) 308 | -10/Materials | Build established: Mutant 430 | -10/Materials | Entered Mines 749 | -10/Mines | Learned location of Storage (-7) 1077 | -10/Mines | Discovered new exit (range 5) 1117 | -10/Mines | Identified exit to Materials 1482 | -10/Mines | Learned Materials stockpile data 1504 | -10/Mines | Core integrity fell below 50% 1647 | -10/Mines | Found the Drone Emporium 1677 | -10/Mines | Found Prototype Device 1767 | -10/Mines | Discovered exit to Materials (range 11) 1820 | -10/Mines | Entered Materials 1820 | -9/Materials | Evolved 2 slots: Utility x2 1886 | -9/Materials | Identified exit to Materials 2167 | -9/Materials | Lost 6 parts (1p3n2u) 2393 | -9/Materials | Identified exit to Mines 2475 | -9/Materials | Entered another Materials area 2475 | -8/Materials | Evolved 2 slots: Utility x2 2679 | -8/Materials | Lost 3 parts (1p2u) 2964 | -8/Materials | Garrison activated, responded to threat 3130 | -8/Materials | Lost 6 parts (1p2n2u1w) 3195 | -8/Materials | Identified exit to Garrison 3197 | -8/Materials | Entered Garrison 3237 | -8/Garrison | Triggered checkpoint 3297 | -8/Garrison | Garrison Relay disabled 3331 | -8/Garrison | Core integrity fell below 50% 3421 | -8/Garrison | Build established: Scavenger-Mutant 3606 | -8/Garrison | Destroyed 7 combat bots 3621 | -8/Garrison | Core integrity fell below 20% 3649 | -8/Garrison | Lost 6 parts (1p2n1u2w) 3677 | -8/Garrison | Triggered checkpoint 3759 | -8/Garrison | Rescued a captive Derelict 3771 | -8/Garrison | Rescued a captive Derelict 3775 | -8/Garrison | Triggered checkpoint 3814 | -8/Garrison | Discovered new exit (range 10) 3834 | -8/Garrison | Identified exit to Materials 3927 | -8/Garrison | Garrison Relay disabled 4122 | -8/Garrison | Discovered exit to Materials (range 13) 4201 | -8/Garrison | Garrison Relay disabled 4309 | -8/Garrison | Garrison Relay disabled 4317 | -8/Garrison | Triggered checkpoint 4339 | -8/Garrison | Discovered exit to Materials (range 8) 4351 | -8/Garrison | Destroyed by Tesla Bomb Trap Last Messages --------------- 04201_ Relay Coupler [Swarmer] tumbles out of relay unit. 04201_ Relay Coupler [Sentry] tumbles out of relay unit. 04201_ Relay Coupler [Swarmer] tumbles out of relay unit. 04201_ Relay Coupler [Grunt] tumbles out of relay unit. 04201_ Relay Coupler [Duelist] tumbles out of relay unit. 04205_ Dropped Relay Coupler [Grunt]. 04206_ Acquired Relay Coupler [Sentry]. 04231_ System corrupted: Substantial component data lost. 04309_ Garrison Relay disabled. 04309_ Relay Coupler [Grunt] tumbles out of relay unit. 04309_ Relay Coupler [Cutter] tumbles out of relay unit. 04309_ Relay Coupler [Hunter] tumbles out of relay unit. 04309_ Relay Coupler [Sentry] tumbles out of relay unit. 04309_ Relay Coupler [NC] tumbles out of relay unit. 04317_ Beams of light sweep through the air. An alarm sounds. 04323_ Discarded Adv. Treads. 04339_ EXIT=FOUND: MATERIALS 04349_ Storage Shell breached. 04351_ Triggered Tesla Bomb Trap. 04351_ A bubble of electromagnetic force engulfs the area. Map ----- +----------------------------------------------------+ | ??????# #???????????????????????????????? | | ####### #???????????????????????????????? | | #???????????????????????????????? | | #???????????????????????????????? | | #???????????????????????????????? | | ###########???????????????????????????????? | | ###???????????????????????????????????????? | | #???????????????????????????????????????? | | #???????????????????????????????????????? | | #???????????????????????????????????????? | | #???????????????????????????????????????? | | ###???????????????????????????????????????? | | ##########????????????????????????????????? | | #????????????????????????????????? | | #????????????????????????????????? | | ###"### #????????????????????????????????? | | #?# #?# #??????????????###???????????????? | | ??# ### #??????????????# ???????????????? | | ??# + #??????????????# "???????????????? | | ### ### #?????????????## "???????????????? | | #?# #?????????????# "???? "?????????? | | ### #?# #?????????????# """" """" #????? | | ??# #?# #?????????????# #????? | | ###"### ############### ????????? | | ^ """"????????????? | | ^ @ "????????????? | | ### ########"####### ### " "????????????? | | ??# ######## #?????# #?# """"????????????? | | ??# ## #?????# #?# ???????????????? | | ??# ## #####"###???# #?####??????????????? | | ??# #??????#!#"#???# #???????????????????? | | ??# #??????# !"#???# #???????????????????? | | ??# #??????# ! #???# ???????????????????? | | ??? ???????# !"#???#